Cogmind - Beta 13 X3 @@@ ROGUE MODE // 2024.02.16 @ 20:43:36 Player: Jay Result: Destroyed by H-55 Commando with Assault Rifle Performance ------------- Evolutions (2) 1000 Regions Visited (4) 800 Robots Destroyed (31) 155 Value Destroyed (786) 786 Prototype IDs (0) 0 Alien Tech Used (0) 0 Bonus (-4) -4 TOTAL SCORE: 2737 Bonus ------- Follower Combat Kills 28 Friendly Fire -32 Cogmind --------- Core Integrity 0/550 Matter 300/300 Energy 100/100 System Corruption 0% Temperature Cool (9) Movement Core (200) Ox3 Location -8/Materials Parts ------- > --- POWER (1) -------- (None) > --- PROPULSION (3) --- (None) > --- UTILITY (3) ------ Medium Storage Unit > --- WEAPON (4) ------- (None) > --- INVENTORY (10) --- Aluminum Leg Medium Storage Unit Peak State ------------ > --- POWER ------------ Light Ion Engine > --- PROPULSION ------- Aluminum Leg Aluminum Leg Aluminum Leg > --- UTILITY ---------- Medium Storage Unit High-capacity Matter Pod Medium Armor Plating > --- WEAPON ----------- Beam Rifle Particle Gun Light Assault Rifle Autogun > --- INVENTORY -------- Light Ion Engine Aluminum Leg Improved Aluminum Leg Heat Sink Heat Sink Medium Storage Unit EM Shotgun EM Shotgun [Rating: 16] Favorites ----------- Power Ion Engine Engine Ion Engine Power Core Light Nuclear Core Propulsion Aluminum Leg Leg Aluminum Leg Utility Medium Storage Unit Device Heat Sink Storage Medium Storage Unit Processor Signal Interpreter Protection Medium Armor Plating Weapon Light Assault Rifle Energy Gun Particle Gun Ballistic Gun Light Assault Rifle Ballistic Cannon Assault Cannon Build | -11 -10 -10 -9 -8 ------- Run | Yrd Mat Min Mat Mat Slots Evolved 4 | . . . 2 2 Power . | . . . . . Propulsion 1 | . . . . 1 Utility 1 | . . . 1 . Weapon 2 | . . . 1 1 Parts Attached 38 | 6 2 7 13 10 Power 6 | 1 . 2 2 1 Engine 5 | 1 . 1 2 1 Core 1 | . . 1 . . Reactor . | . . . . . Propulsion 11 | 2 . 3 3 3 Treads . | . . . . . Leg 11 | 2 . 3 3 3 Wheel . | . . . . . Hover . | . . . . . Flight . | . . . . . Utility 9 | 1 2 1 4 1 Device 3 | . 1 . 1 1 Storage 4 | 1 1 . 2 . Processor 1 | . . 1 . . Hackware . | . . . . . Protection 1 | . . . 1 . Artifact . | . . . . . Weapon 12 | 2 . 1 4 5 Energy Gun 8 | 1 . 1 2 4 Energy Cannon . | . . . . . Ballistic Gun 3 | 1 . . 2 . Ballistic Cannon 1 | . . . . 1 Launcher . | . . . . . Special Weapon . | . . . . . Impact Weapon . | . . . . . Slashing Weapon . | . . . . . Piercing Weapon . | . . . . . Special Melee Weapon . | . . . . . Unidentified Prototypes . | . . . . . Parts Lost 23 | . . 2 4 17 Power 3 | . . . 1 2 Propulsion 6 | . . 1 1 4 Utility 3 | . . . . 3 Weapon 11 | . . 1 2 8 Highest Loss Streak 16 | . . 1 3 16 To Critical Strikes . | . . . . . Average Slot Usage (%) 96 | . 99 99 99 76 Engine 10 | . 14 12 8 4 Core 1 | . . 1 2 . Leg 24 | . 28 27 21 20 Device 4 | . 13 1 4 2 Storage 17 | . 14 14 21 17 Processor 4 | . . 12 . . Protection 3 | . . . 6 5 Energy Gun 14 | . 14 14 14 17 Ballistic Gun 15 | . 14 14 18 7 Naked Turns . | . . . . . Heaviest Build 34 | 13 19 19 31 34 Greatest Support 30 | 20 20 20 20 30 Greatest Overweight (x) 8 | . . 1 1 8 Average Overweight (x) . | . . . 1 1 Largest Inventory Capacity 10 | 8 10 10 10 10 Average Capacity 9 | 6 8 10 10 10 Most Carried 10 | 5 3 10 10 10 Average Carried 7 | 2 2 8 8 6 Final Capacity 10 | 8 10 10 10 10 Final Carried 10 | 2 3 10 10 2 Class Distribution -------------------- 47% | Mutant 30% | Scavenger-Tank 16% | Scavenger-Gunner 5% | Gunner Dominant Class ---------------- Mutant | -10/Materials Mutant | -10/Mines Scavenger-Tank | -9/Materials Scavenger-Tank | -8/Materials Resources | -11 -10 -10 -9 -8 ----------- Run | Yrd Mat Min Mat Mat Matter Collected 861 | 212 28 134 404 83 Remotely . | . . . . . Salvage Created 1024 | . 28 192 546 258 Parts 58 | . 2 8 38 10 Haulers Intercepted . | . . . . . Recyclers Shooed 1 | . . . 1 . Parts Field Recycled . | . . . . . Retrieved Matter . | . . . . . Parts Self-Destructed . | . . . . . Prevented . | . . . . . Kills | -11 -10 -10 -9 -8 ------- Run | Yrd Mat Min Mat Mat Combat Hostiles Destroyed 25 | . . 4 16 5 Guns 25 | . . 4 16 5 Classes Destroyed 9 | . 1 4 3 1 Worker 2 | . . 1 1 . Recycler 1 | . . 1 . . Mechanic 1 | . 1 . . . Operator 1 | . . . 1 . Watcher 1 | . . . 1 . Swarmer 10 | . . 2 8 . Grunt 11 | . . 2 5 4 Brawler 1 | . . . . 1 Sentry 3 | . . . 3 . Best Kill Streak 7 | . 1 2 7 4 Combat Bots Only 6 | . . 2 6 4 Max Kills in Single Turn 2 | . 1 1 1 2 Gunslinging 1 | . . . . 1 Exploded . | . . . . . Melee . | . . . . . Uniques/NPCs Destroyed . | . . . . . Combat | -11 -10 -10 -9 -8 -------- Run | Yrd Mat Min Mat Mat Hostile Shots Fired 285 | . . 63 75 147 Missed 70 | . . 13 20 37 Damage Taken 3127 | . . 566 607 1954 Core 754 | . . 103 92 559 Absorbed by Shields . | . . . . . Core Remaining (%) 78 | 100 . 58 77 . Volleys Fired 84 | . 1 33 35 15 Largest 4 | . 2 2 3 4 Hottest 189 | . 70 70 125 189 Shots Fired 209 | . 2 66 100 41 Gun 209 | . 2 66 100 41 Cannon . | . . . . . Launcher . | . . . . . Special . | . . . . . Kinetic 95 | . 1 33 48 13 Thermal 86 | . 1 30 32 23 Explosive . | . . . . . Electromagnetic 28 | . . 3 20 5 Robot Hit Streak 14 | . 2 4 14 4 Robot Miss Streak 5 | . . 4 5 2 Penetration Max . | . . . . . Secondary Targets 8 | . . . 6 2 Max Gunslinging Chain 2 | . . . 1 2 Shots Hit Robots 116 | . 2 34 57 23 Core Hits 60 | . 2 14 30 14 Critical Kills . | . . . . . Critical Parts Destroyed . | . . . . . Critical Strikes 3 | . . 1 . 2 Burn 3 | . . 1 . 2 Melee Attacks . | . . . . . Impact . | . . . . . Slashing . | . . . . . Piercing . | . . . . . Sneak Attacks . | . . . . . Combat Hostiles . | . . . . . Follow-up Attacks . | . . . . . Damage Inflicted 1620 | . 22 364 882 352 Guns 1508 | . 22 363 775 348 Cannons . | . . . . . Explosions 107 | . . . 107 . Melee . | . . . . . Ramming 5 | . . 1 . 4 Kinetic 479 | . 10 132 251 86 Thermal 876 | . 12 197 462 205 Explosive . | . . . . . Electromagnetic 260 | . . 34 169 57 Impact . | . . . . . Slashing . | . . . . . Piercing . | . . . . . Highest Corruption . | . . . . . Average Corruption . | . . . . . Corruption Purged . | . . . . . Corruption Blocked . | . . . . . Overload Shots . | . . . . . Overflow Damage 7 | . . . . 7 Projectiles . | . . . . . Explosions 7 | . . . . 7 Melee . | . . . . . Knockbacks . | . . . . . Impact . | . . . . . Kinetic . | . . . . . Secondary . | . . . . . Self-Inflicted Damage 142 | . . . 28 114 Shots 2 | . . . 1 1 Rammed . | . . . . . Targets Rammed 2 | . . 1 . 1 Kicked 2 | . . 1 . 1 Crushed . | . . . . . Highest Temperature 601 | . 10 397 224 601 Average Temperature 138 | . 7 134 69 261 Received Heat Transfer 1122 | . . 300 156 666 Effects 9 | . . 1 . 8 Interference 4 | . . . . 4 Matter Decay 1 | . . . . 1 Short Circuit 1 | . . . . 1 Damage (minor) 2 | . . 1 . 1 Damage (core) 1 | . . . . 1 Siege Activations . | . . . . . Robots Corrupted . | . . . . . Combat Hostiles . | . . . . . Parts Fried . | . . . . . Impact Corruptions . | . . . . . Robots Melted . | . . . . . Combat Hostiles . | . . . . . Parts Melted 1 | . . . . 1 Heat Transferred 2383 | . 37 666 1051 629 Parts Sabotaged . | . . . . . Parts Stolen . | . . . . . Parts Stripped . | . . . . . Power Chain Reactions 1 | . . . 1 . Alert | -11 -10 -10 -9 -8 ------- Run | Yrd Mat Min Mat Mat Peak Influence 348 | . 10 117 348 154 Initial 45 | . . 3 45 45 Average 94 | . 5 15 192 78 Maximum Alert Level 1 | . . . 1 . Low Security (%) 81 | 100 100 100 54 100 Level 1 18 | . . . 45 . Level 2 . | . . . . . Level 3 . | . . . . . Level 4 . | . . . . . Level 5 . | . . . . . High Security . | . . . . . Max Security . | . . . . . Squads Dispatched . | . . . . . Investigation . | . . . . . Extermination . | . . . . . Reinforcement . | . . . . . Assault . | . . . . . Garrison . | . . . . . Intercept . | . . . . . Searches Triggered . | . . . . . Construction Impeded . | . . . . . Haulers Reinforced . | . . . . . Active Scanning Responses . | . . . . . Cargo Convoy Interrupts . | . . . . . Stealth | -11 -10 -10 -9 -8 --------- Run | Yrd Mat Min Mat Mat Distress Signals 1 | . . . 1 . Communications Jammed . | . . . . . Distress Signals . | . . . . . Times Spotted 45 | . . 9 24 12 Peak Tracking Total 8 | . . 3 8 7 Tactical Retreats 2 | . . 1 1 . Traps | -11 -10 -10 -9 -8 ------- Run | Yrd Mat Min Mat Mat Traps Triggered . | . . . . . Indirectly . | . . . . . Trap Hack Attempts . | . . . . . Triggered . | . . . . . Disarmed . | . . . . . Reprogrammed . | . . . . . Reused . | . . . . . Traps Extracted . | . . . . . Installed . | . . . . . Triggered . | . . . . . Machines | -11 -10 -10 -9 -8 ---------- Run | Yrd Mat Min Mat Mat Machines Disabled 1 | . . . . 1 Max in Single Turn 1 | . . . . 1 Machines Repaired . | . . . . . Machines Dismantled . | . . . . . Machines Sabotaged . | . . . . . Overloaded Fab Kills . | . . . . . Hacking | -11 -10 -10 -9 -8 --------- Run | Yrd Mat Min Mat Mat Machines Accessed 2 | . 1 . 1 . Terminals 1 | . 1 . . . Fabricators . | . . . . . Repair Stations . | . . . . . Recycling Units 1 | . . . 1 . Scanalyzers . | . . . . . Garrison Access . | . . . . . Total Hacks 6 | . 4 . 2 . Successful 4 | . 2 . 2 . Failed 2 | . 2 . . . Catastrophic . | . . . . . Database Lockouts . | . . . . . Manual . | . . . . . Terminals 4 | . 4 . . . Fabricators . | . . . . . Repair Stations . | . . . . . Recycling Units 2 | . . . 2 . Scanalyzers . | . . . . . Garrison Access . | . . . . . Terminal Hacks 2 | . 2 . . . Patrol Status 1 | . 1 . . . Hauler Manifests 1 | . 1 . . . Fabricator Hacks . | . . . . . Repair Station Hacks . | . . . . . Recycling Unit Hacks 2 | . . . 2 . Process 1 | . . . 1 . Report Inventory 1 | . . . 1 . Scanalyzer . | . . . . . Garrison Access Hacks . | . . . . . Unauthorized Hacks . | . . . . . Terminals . | . . . . . Fabricators . | . . . . . Repair Stations . | . . . . . Recycling Units . | . . . . . Scanalyzers . | . . . . . Garrison Access . | . . . . . Data Cores Recovered 1 | . . . 1 . Used . | . . . . . Hacking Detections . | . . . . . Full Trace Events . | . . . . . Feedback Events . | . . . . . Feedback Blocked . | . . . . . Robot Schematics Acquired . | . . . . . Robots Built . | . . . . . Authchips . | . . . . . Time . | . . . . . Total Robot Build Rating . | . . . . . Part Schematics Acquired . | . . . . . Parts Built . | . . . . . Authchips . | . . . . . Time . | . . . . . Total Part Build Rating . | . . . . . Parts Repaired . | . . . . . Time . | . . . . . Parts Recycled . | . . . . . Recycled Matter 111 | . . . 111 . Retrieved Matter . | . . . . . Retrieved Components . | . . . . . Parts Scanalyzed . | . . . . . Part Schematics Acquired . | . . . . . Parts Damaged . | . . . . . Bothacking | -11 -10 -10 -9 -8 ------------ Run | Yrd Mat Min Mat Mat Used RIF Installer . | . . . . . Robots Hacked . | . . . . . Non-combat . | . . . . . Combat . | . . . . . Robot Hacks Applied . | . . . . . Relay Couplers Released . | . . . . . Fabnet Peak Effective % . | . . . . . Robots Rewired . | . . . . . Allies Hacked . | . . . . . Hacks Repelled . | . . . . . Allies | -11 -10 -10 -9 -8 -------- Run | Yrd Mat Min Mat Mat Total Allies 3 | . . 3 . . Largest Group 3 | . . 3 1 . Highest-Rated Group 40 | . . 40 16 . Highest-Rated Ally 16 | . . 16 16 . Total Orders . | . . . . . Ally Attacks 19 | . . 15 4 . Total Damage 161 | . . 132 29 . Kills 4 | . . 4 . . Allies Corrupted . | . . . . . Allies Melted . | . . . . . Intel | -11 -10 -10 -9 -8 ------- Run | Yrd Mat Min Mat Mat Robot Analysis Total . | . . . . . Derelict Logs Recovered 1 | . . 1 . . Drone Launches . | . . . . . Drone Recoveries . | . . . . . Exploration | -11 -10 -10 -9 -8 ------------- Run | Yrd Mat Min Mat Mat Turns Passed 1986 | 55 187 688 819 237 Spaces Moved 1056 | 44 149 428 354 81 Core 18 | 13 . . . 5 Treads . | . . . . . Legs 1038 | 31 149 428 354 76 Wheels . | . . . . . Hover . | . . . . . Flight . | . . . . . Fastest Speed 50 | 50 120 120 190 120 Average Speed 148 | 99 120 120 190 194 Slowest Speed 450 | 120 120 190 190 450 Overloaded Moves . | . . . . . Propulsion Burnouts . | . . . . . Robots Hopped . | . . . . . Cave-ins Triggered . | . . . . . Exploration Rate (%) 25 | 3 25 56 32 12 Regions Visited 4 Branch Regions 1 Pre-discovered Areas . | . . . . . Known Exits Taken 1 | . . 1 . . Unknown Exits Taken 3 | 1 1 . 1 . Scrap Searched 2 | . . 2 . . Spaces Dug . | . . . . . Terrain Destroyed 24 | . . . 1 23 Melee . | . . . . . Projectile . | . . . . . AOE 24 | . . . 1 23 Terrain Rammed . | . . . . . Walls Destroyed . | . . . . . Machines Disabled . | . . . . . Actions | -11 -10 -10 -9 -8 --------- Run | Yrd Mat Min Mat Mat Total 1323 | 54 155 543 439 132 Wait 92 | . . 58 14 20 Move 1052 | 43 148 427 353 81 Hop . | . . . . . Pick Up 37 | 5 3 12 14 3 Fast Attach 6 | 3 . 2 1 . Attach 29 | 3 1 4 11 10 Detach . | . . . . . Swap 3 | . 1 1 1 . Drop 18 | . 1 5 10 2 Fire 84 | . 1 33 35 15 Melee . | . . . . . Ram . | . . . . . Kick 2 | . . 1 . 1 Crush . | . . . . . Escape Stasis . | . . . . . Rewire . | . . . . . Trap . | . . . . . Miscellaneous . | . . . . . Route ------- -11/Scrapyard -10/Materials -10/Mines -9/Materials -8/Materials History --------- Turn | Location | Event 7 | -11/Scrapyard | Discovered new exit (range 15) 56 | -11/Scrapyard | Entered Materials 212 | -10/Materials | Discovered new exit (range 16) 243 | -10/Materials | Entered Mines 322 | -10/Mines | Met a Derelict bent on vengeance 329 | -10/Mines | Build established: Mutant 497 | -10/Mines | Learned Materials terminal intel 667 | -10/Mines | Assisted by bots powering up and referring to "LRC-V3" 928 | -10/Mines | Discovered new exit (range 3) 930 | -10/Mines | Identified exit to Materials 931 | -10/Mines | Entered Materials 931 | -9/Materials | Accompanied by 1 ally 931 | -9/Materials | Evolved 2 slots: Utility x1, Weapon x1 932 | -9/Materials | Loaded intel: 11 terminal locations 1218 | -9/Materials | Lost 3 parts (1n2w) 1589 | -9/Materials | Build established: Scavenger-Tank 1718 | -9/Materials | Discovered new exit (range 8) 1750 | -9/Materials | Entered another Materials area 1750 | -8/Materials | Evolved 2 slots: Propulsion x1, Weapon x1 1973 | -8/Materials | Core integrity fell below 50% 1984 | -8/Materials | Core integrity fell below 20% 1987 | -8/Materials | Destroyed by H-55 Commando with Assault Rifle Last Messages --------------- 01957_ K-01 Serf collects debris. 01958_ Imp. Aluminum Leg destroyed. 01959_ Penetrated by Slug. 01959_ Material Processor disabled. 01966_ Slug penetrates Wall. 01967_ Hcp. Matter Pod destroyed. 01968_ C-30 ARC bursts open, deploying its payload. 01968_ G-47 Trooper unfolds itself. 01969_ Slug penetrates Wall. 01973_ Critical hit (Burn: +37). 01975_ Slug penetrates Wall. 01976_ K-01 Serf collects debris. 01976_ Particle Gun destroyed. 01978_ Slug penetrates Wall. 01978_ EM Shotgun destroyed. 01979_ K-01 Serf collects debris. 01981_ Assault Cannon destroyed. 01981_ Heat Sink destroyed. 01983_ K-01 Serf cleans the Terminal. 01987_ Slug penetrates Y-45 Defender. Map ----- +----------------------------------------------------+ | ?????????????????????????????????????????? | | ?????????????????????????????????????????? | | ?????????????????????????????????????????? | | ?????????????????????????????????????????? | | ?????????????????????????????????????????? | | ?????????????????????????????????????????? | | ?????????????????????????????????????????? | | ?????????????????????????????????????????? | | ??????????????????? ???????????????????? | | ??????????????????# ???????????????????? | | ??????????????????# #??????????????????? | | ??????????????????# #??????????????????? | | ??????????????????# #??????????????????? | | ??????????????????# #??????????????????? | | ??????????????????# #??????????????????? | | ??????????????????# #??????????????????? | | ?????????####+##### #??????????????????? | | ????????? #??????????????????? | | ?????????? % #########??????????? | | ?????????? ""k # ??????????? | | ???????????# "" # """ #?????????? | | ???????????# "T # """"" #?????????? | | ???????????# "" #gg """" #?????????? | | ???????????# "" hYg""""" #?????????? | | ???????????# #g " #?????????? | | ???????????+ # l@ #?????????? | | ???????????# # #?????????? | | ???????????####/####### = #?????????? | | ????????????# #??##########?????????? | | ????????????# !!! #?????????????????????? | | ????????????# !!! #?????????????????????? | | ????????????# !!! #?????????????????????? | | ????????????# #?????????????????????? | | ????????????# #?????????????????????? | | ????????????###/####?????????????????????? | | ??????????????# #????????????????????????? | | ??????????????# #???????#????????????????? | | ?????????????## #?##### ##???????????????? | | ?????????????# +? ????????????????? | | ?????????????# # !! """?????????????????? | | ????????###### # !! """ ????????????????? | | ????????# ! """ #???????????????? | | ######### #???????????????? | | = """ """ #???????????????? | | % *= =#"R """?????????????????? | | """= """ ""??????????????????? | | """ = [% ??????????????????? | | """ ###+##?????????????????? | | ! ????????????????? | | ????????????????? | +----------------------------------------------------+ Best States ------------- Heat Dissipation 41 Energy Generation 14 Energy Capacity 250 Matter Stores 500 Matter Capacity 500 Sight Range 16 Terrain Scan Density 10 Armor Coverage 225 Evasion (%) 55 Item Schematics ----------------- None Robot Schematics ------------------ None Fabricated ------------ Nothing Alien Tech Used ----------------- None Achievements -------------- None Challenges ------------ None Game ------ Seed HelicalBiomechanicalBarrier Manual? 0 Play Time 00:25:39 Cumulative 33.9 hours Start 2024.02.16 @ 20:10:43 End 2024.02.16 @ 20:43:36 Sessions 1 Manual Loads 0 Difficulty Rogue Special Mode None Game No. 57 Rogue 45 Adventurer 12 Explorer 0 Win Type - Total 0 Types 0/0/0/0/0/0/0/0/0 Lore% 13 Gallery% 23 Achievement% 18 Wizard Run 0 Options --------- Layout 0 ASCII 0 Keyboard 0 Movement Mouse Keybinds 0 Fullscreen 2 Font 18/SmallcapsGlow Map View 38x25 Zoom Use 100% Tactical HUD 1 Map Filters NONE Filters NONE Steam 1 RUN: 37951441-054b-45e4-8ea0-3d775db586bb